bitfinex/quotes_BTCUSD_20250808
["timestamp","ask_amount","ask_price","bid_price","bid_amount"]
[1754644781978,0.31932797,116770.0,116760.0,0.44501399]
[1754644782183,0.49060483,116770.0,116760.0,0.44501399]
[1754644782840,0.51439483,116770.0,116760.0,0.44501399]
[1754644783669,0.51439483,116770.0,116760.0,0.41518399]
[1754644784411,0.51439483,116770.0,116760.0,0.11365246]
[1754644784638,0.8342728,116770.0,116760.0,0.11365246]
[1754644784861,0.8342728,116770.0,116760.0,0.08790946]
[1754644785060,0.8342728,116770.0,116760.0,0.00104735]
[1754644785550,0.8342728,116770.0,116760.0,4.735e-05]
[1754644786077,0.8352728,116770.0,116760.0,4.735e-05]
[1754644793613,0.9654728,116770.0,116760.0,4.735e-05]
[1754644799657,1.3054728,116770.0,116760.0,4.735e-05]
[1754644811783,0.66837686,116770.0,116760.0,4.735e-05]
[1754644811989,0.82949483,116770.0,116760.0,0.02761735]
[1754644812196,0.95981483,116770.0,116760.0,0.02761735]
[1754644812738,0.51227686,116770.0,116760.0,0.19890888]
[1754644812889,1.06576922,116770.0,116760.0,0.19890888]
[1754644813111,0.72576922,116770.0,116760.0,0.19890888]
[1754644813533,0.30263686,116770.0,116760.0,0.28577099]
[1754644814317,0.72576922,116770.0,116760.0,0.11447946]
[1754644814524,0.72576922,116770.0,116760.0,0.14022246]
[1754644826497,0.30263686,116770.0,116760.0,0.14022246]
[1754644826658,0.72576922,116770.0,116760.0,0.14022246]
[1754644829049,0.72572922,116770.0,116760.0,0.14022246]
[1754644829873,0.72572922,116770.0,116760.0,0.31151399]
[1754644830285,0.72572922,116770.0,116760.0,0.14022246]
[1754644830487,0.72572922,116770.0,116760.0,0.31151399]
[1754644831056,0.72572922,116770.0,116760.0,0.14022246]
[1754644831644,0.72770922,116770.0,116760.0,0.14022246]
[1754644834330,0.30457686,116770.0,116760.0,0.11265246]
[1754644834557,0.75301922,116770.0,116760.0,0.11265246]
[1754644834748,0.64446888,116770.0,116760.0,0.11265246]
[1754644835174,0.64446888,116770.0,116760.0,0.13561246]
[1754644835530,0.64446888,116770.0,116760.0,0.13871246]
[1754644836491,0.64446888,116770.0,116760.0,0.14066246]
[1754644838453,0.17425686,116770.0,116760.0,0.31195399]
[1754644838683,0.61997888,116770.0,116760.0,0.31195399]
[1754644840197,0.61997888,116770.0,116760.0,0.14066246]
[1754644840626,0.61997888,116770.0,116760.0,0.31195399]
[1754644841376,0.61993888,116770.0,116760.0,0.31195399]
[1754644843104,0.61997888,116770.0,116760.0,0.31195399]
[1754644848286,0.48965888,116770.0,116760.0,0.31195399]
[1754644848713,0.61989888,116770.0,116760.0,0.31195399]
[1754644849426,0.30251686,116770.0,116760.0,0.31195399]
[1754644849699,0.61989888,116770.0,116760.0,0.31195399]
[1754644850726,0.30251686,116770.0,116760.0,0.31195399]
[1754644850892,0.61989888,116770.0,116760.0,0.31195399]
[1754644861840,0.61989888,116770.0,116760.0,0.14066246]
[1754644862057,0.64536888,116770.0,116760.0,0.14066246]
[1754644862510,0.64536888,116770.0,116760.0,0.11265246]
[1754644867365,0.64536888,116770.0,116760.0,0.13595246]
[1754644868553,0.64532888,116770.0,116760.0,0.13595246]
[1754644868938,0.64532888,116770.0,116760.0,0.11265246]
[1754644870346,0.9627109,116770.0,116760.0,0.11265246]
[1754644870548,0.9655009,116770.0,116760.0,4.735e-05]
[1754644871100,1.3055009,116770.0,116760.0,4.735e-05]
[1754644872775,1.3045009,116770.0,116760.0,4.735e-05]
[1754644872993,1.3055009,116770.0,116760.0,4.735e-05]
[1754644873204,1.3075009,116770.0,116760.0,4.735e-05]
[1754644878914,1.3047109,116770.0,116760.0,4.735e-05]
[1754644882395,1.3075009,116770.0,116760.0,4.735e-05]
[1754644887916,1.3047109,116770.0,116760.0,4.735e-05]
[1754644889431,1.3075109,116770.0,116760.0,4.735e-05]
[1754644900055,1.3074244,116770.0,116760.0,4.735e-05]
[1754644907775,1.62480642,116770.0,116760.0,4.735e-05]
[1754644908431,1.3074244,116770.0,116760.0,4.735e-05]
[1754644909540,1.62480642,116770.0,116760.0,4.735e-05]
[1754644914334,1.64225544,116770.0,116760.0,4.735e-05]
[1754644914547,1.92911755,116770.0,116760.0,4.735e-05]
[1754644916320,1.92631755,116770.0,116760.0,4.735e-05]
[1754644916744,1.60893553,116770.0,116760.0,4.735e-05]
[1754644916963,1.92631755,116770.0,116760.0,4.735e-05]
[1754644917457,1.92910755,116770.0,116760.0,4.735e-05]
[1754644919742,1.92631755,116770.0,116760.0,4.735e-05]
[1754644930961,1.92911755,116770.0,116760.0,4.735e-05]
[1754644931679,1.92911755,116770.0,116760.0,1e-08]
[1754644931680,2.0159118,116770.0,116760.0,1e-08]
[1754644931897,2.99190325,116770.0,116760.0,1e-08]
[1754644932119,8.05714456,116770.0,116760.0,1e-08]
[1754644932602,8.03385725,116770.0,116760.0,1e-08]
[1754644932825,7.08171119,116770.0,116760.0,1e-08]
[1754644933048,7.08571119,116770.0,116760.0,1e-08]
[1754644933271,7.0618658,116770.0,116760.0,1e-08]
[1754644934720,7.0608658,116770.0,116760.0,1e-08]
[1754644935194,7.0628658,116770.0,116760.0,1e-08]
[1754644935411,6.8351058,116770.0,116760.0,1e-08]
[1754644935628,7.1851058,116770.0,116760.0,0.02465001]
[1754644935842,7.1851058,116770.0,116760.0,0.02762001]
[1754644936487,7.1851058,116770.0,116760.0,1e-08]
[1754644937368,7.2108588,116770.0,116760.0,1e-08]
[1754644939598,0.17133556,116730.0,116720.0,0.025753]
[1754644939783,0.61899758,116730.0,116720.0,0.11470247]
[1754644941074,0.61899758,116730.0,116720.0,0.11670247]
[1754644941483,0.61899758,116730.0,116720.0,0.14371247]
[1754644941693,0.61899758,116730.0,116720.0,0.14471247]
[1754644941895,0.3100548,116730.0,116720.0,0.14471247]
[1754644942138,0.62743682,116730.0,116720.0,0.14471247]
[1754644942815,0.62743682,116730.0,116720.0,0.05785036]
[1754644943102,0.3100548,116730.0,116720.0,0.05785036]
[1754644943332,0.62743682,116730.0,116720.0,0.05785036]
[1754644944000,0.62743682,116730.0,116720.0,0.03084036]
[1754644944001,1.31087884,116730.0,116720.0,0.03084036]
[1754644944227,1.63119086,116730.0,116720.0,0.00304736]
[1754644944661,1.63119086,116730.0,116720.0,0.00204736]
[1754644944877,1.40060309,116730.0,116720.0,0.00204736]
[1754644945092,1.40060309,116730.0,116720.0,4.736e-05]
[1754644945543,1.31380884,116730.0,116720.0,4.736e-05]
[1754644946274,1.31480884,116730.0,116720.0,4.736e-05]
[1754644948735,1.31580884,116730.0,116720.0,4.736e-05]
[1754644949189,1.31580884,116730.0,116720.0,1e-08]
[1754644949190,2.08750199,116730.0,116720.0,1e-08]
[1754644949418,2.19905724,116730.0,116720.0,1e-08]
[1754644949830,2.20105724,116730.0,116720.0,1e-08]
[1754644950043,2.22490263,116730.0,116720.0,1e-08]
[1754644950438,7.24385663,116730.0,116720.0,1e-08]
[1754644950906,7.13908289,116730.0,116720.0,1e-08]
[1754644965427,7.1152375,116730.0,116720.0,1e-08]
[1754644966183,6.68874134,116730.0,116720.0,0.02899001]
[1754644966615,7.1124275,116730.0,116720.0,0.00198001]
[1754644966822,7.1153575,116730.0,116720.0,1e-08]
[1754644972909,7.0908746,116730.0,116720.0,1e-08]
[1754644973124,7.2212746,116730.0,116720.0,1e-08]
[1754644974225,7.22104759,116730.0,116720.0,1e-08]
[1754644974945,6.87429445,116730.0,116720.0,0.02811001]
[1754644975416,6.4375002,116730.0,116720.0,0.02811001]
[1754644975621,6.7875002,116730.0,116720.0,0.02811001]
[1754644975750,6.8102302,116730.0,116720.0,0.02811001]
[1754644975976,6.4602302,116730.0,116720.0,0.02811001]
[1754644976189,6.8102302,116730.0,116720.0,0.02811001]
[1754644976614,6.4602302,116730.0,116720.0,0.02811001]
[1754644976818,1.27069718,116730.0,116720.0,0.02811001]
[1754644977152,0.97075093,116730.0,116720.0,0.02811001]
[1754644977317,1.28851407,116730.0,116720.0,0.02811001]
[1754644978754,1.07651694,116730.0,116720.0,0.02811001]
[1754644982272,0.31298779,116730.0,116720.0,0.02811001]
[1754644983039,0.73651694,116730.0,116720.0,0.02811001]
[1754644983249,1.07651694,116730.0,116720.0,0.02811001]
[1754644987604,0.65298779,116730.0,116720.0,0.02811001]
[1754644987842,1.07651694,116730.0,116720.0,0.02811001]
[1754644991113,0.52254779,116730.0,116720.0,0.02811001]
[1754644991334,0.65294779,116730.0,116720.0,0.19946024]
[1754644991583,0.01143924,116730.0,116720.0,0.28632235]
[1754644991795,0.3131748,116730.0,116720.0,0.28632235]
[1754644992005,0.1334,116730.0,116720.0,0.28632235]
[1754644992451,0.30473556,116730.0,116720.0,0.28632235]
[1754644992921,0.1334,116730.0,116720.0,0.28632235]
[1754644993174,0.30473556,116730.0,116720.0,0.28632235]
[1754644993805,0.1334,116730.0,116720.0,0.28632235]
[1754644994286,0.30473556,116730.0,116720.0,0.28632235]
[1754644994740,0.1334,116730.0,116720.0,0.28632235]
[1754644995177,0.30473556,116730.0,116720.0,0.28632235]
[1754644996781,0.37473556,116730.0,116720.0,0.28632235]
[1754644996991,0.37473556,116730.0,116720.0,0.31207435]
[1754644997843,0.2034,116730.0,116720.0,0.31207435]
[1754644998666,0.2034,116730.0,116720.0,0.7356035]
[1754644999672,0.2024,116730.0,116720.0,0.7356035]
[1754645000308,0.2004,116730.0,116720.0,0.31207435]
[1754645000510,0.2004,116730.0,116720.0,0.7356035]
[1754645000725,0.2004,116730.0,116720.0,0.31207435]
[1754645012577,0.2004,116730.0,116720.0,0.7356035]
[1754645012978,0.2004,116730.0,116720.0,0.31207435]
[1754645015674,0.2004,116730.0,116720.0,0.7356035]
[1754645016090,0.2004,116730.0,116720.0,0.31207435]
[1754645018786,0.2004,116730.0,116720.0,0.62954753]
[1754645020159,0.2004,116730.0,116720.0,0.31207435]
[1754645020372,0.2004,116730.0,116720.0,0.62954753]
[1754645020906,0.22437,116730.0,116720.0,0.62954753]
[1754645024650,0.22653,116730.0,116720.0,0.62954753]
[1754645024847,0.22653,116730.0,116720.0,0.28904435]
[1754645025205,0.71533874,116730.0,116720.0,0.28904435]
[1754645026260,0.54400318,116730.0,116720.0,0.28904435]
[1754645026478,0.22653,116730.0,116720.0,0.60651753]
[1754645026689,0.39786556,116730.0,116720.0,0.60651753]
[1754645027126,0.22653,116730.0,116720.0,0.60651753]
[1754645028241,0.39786556,116730.0,116720.0,0.60651753]
[1754645029793,0.22653,116730.0,116720.0,0.60651753]
[1754645030001,0.39786556,116730.0,116720.0,0.60651753]
[1754645031086,0.22653,116730.0,116720.0,0.60651753]
[1754645031959,0.39786556,116730.0,116720.0,0.60651753]
[1754645035468,0.71533874,116730.0,116720.0,0.28904435]
[1754645039791,0.71830874,116730.0,116720.0,0.11261412]
[1754645041464,0.71830874,116730.0,116720.0,0.02575201]
[1754645042113,0.40083556,116730.0,116720.0,0.02575201]
[1754645042336,0.71830874,116730.0,116720.0,1e-08]
[1754645045574,0.71930874,116730.0,116720.0,1e-08]
[1754645062530,0.40183556,116730.0,116720.0,1e-08]
[1754645062763,0.71930874,116730.0,116720.0,1e-08]
[1754645063874,0.39886556,116730.0,116720.0,0.17337024]
[1754645064082,0.71633874,116730.0,116720.0,0.17337024]
[1754645064528,0.71633874,116730.0,116720.0,0.00202001]
[1754645065240,0.71928874,116730.0,116720.0,1e-08]
[1754645065687,0.40181556,116730.0,116720.0,1e-08]
[1754645065879,0.71928874,116730.0,116720.0,1e-08]
[1754645068526,0.40181556,116730.0,116720.0,1e-08]
[1754645068730,0.71928874,116730.0,116720.0,1e-08]
[1754645072016,0.71633874,116730.0,116720.0,0.02765001]
[1754645072726,0.71633874,116730.0,116720.0,0.00500001]
[1754645072975,0.71633874,116730.0,116720.0,0.00202001]
[1754645074704,0.71633874,116730.0,116720.0,0.17337024]
[1754645075649,0.71633874,116730.0,116720.0,0.19900024]
[1754645076308,0.71633874,116730.0,116720.0,0.17635024]
[1754645076741,0.71633874,116730.0,116720.0,0.17337024]
[1754645078481,0.2012,116730.0,116720.0,0.92080871]
[1754645078701,0.2012,116730.0,116720.0,0.62908653]
[1754645082896,0.37253556,116730.0,116720.0,0.62908653]
[1754645083109,0.2012,116730.0,116720.0,0.62908653]
[1754645083514,0.20019602,116730.0,116720.0,0.62908653]
[1754645084085,0.37153158,116730.0,116720.0,0.62908653]
[1754645085470,0.39549158,116730.0,116720.0,0.62908653]
[1754645085685,0.39549158,116730.0,116720.0,0.31161335]
[1754645085882,0.39549158,116730.0,116720.0,0.62908653]
[1754645087006,0.39549158,116730.0,116720.0,0.31161335]
[1754645087223,0.71786476,116730.0,116720.0,0.11261312]
[1754645088714,0.40039158,116730.0,116720.0,0.28396335]
[1754645088900,0.71786476,116730.0,116720.0,0.28396335]
[1754645089040,0.40039158,116730.0,116720.0,0.28598335]
[1754645089259,0.71491476,116730.0,116720.0,0.28598335]
[1754645090086,0.71491476,116730.0,116720.0,0.11463312]
[1754645090496,0.71491476,116730.0,116720.0,0.11261312]
[1754645090698,0.71786476,116730.0,116720.0,0.11261312]
[1754645095379,0.78734238,116730.0,116720.0,0.11261312]
[1754645095637,0.4698692,116730.0,116720.0,0.02575101]
[1754645095813,0.78734238,116730.0,116720.0,0.02575101]
[1754645096469,0.78734238,116730.0,116720.0,1e-08]
[1754645096863,1.12734238,116730.0,116720.0,1e-08]
[1754645097069,1.44481556,116730.0,116720.0,1e-08]
[1754645097669,0.8098692,116730.0,116720.0,1e-08]
[1754645097909,1.76228874,116730.0,116720.0,1e-08]
[1754645098113,1.44481556,116730.0,116720.0,1e-08]
[1754645098328,1.89912669,116730.0,116720.0,1e-08]
[1754645098535,2.21659987,116730.0,116720.0,1e-08]
[1754645099303,1.90012669,116730.0,116720.0,1e-08]
[1754645100279,1.89912669,116730.0,116720.0,1e-08]
[1754645100480,1.90012669,116730.0,116720.0,1e-08]
[1754645101006,1.89812669,116730.0,116720.0,1e-08]
[1754645101389,1.83264907,116730.0,116720.0,1e-08]
[1754645103023,2.2369165,116730.0,116720.0,1e-08]
[1754645103302,1.91944332,116730.0,116720.0,1e-08]
[1754645106257,2.2369165,116730.0,116720.0,1e-08]
[1754645106888,1.91944332,116730.0,116720.0,1e-08]
[1754645107075,1.92944332,116730.0,116720.0,1e-08]
[1754645108116,2.2469165,116730.0,116720.0,1e-08]
[1754645109613,7.2658705,116730.0,116720.0,1e-08]
[1754645118108,6.94839732,116730.0,116720.0,1e-08]
[1754645119076,7.2658705,116730.0,116720.0,1e-08]
[1754645120265,6.81819732,116730.0,116720.0,1e-08]
[1754645120488,6.94843732,116730.0,116720.0,1e-08]
[1754645121522,7.15435732,116730.0,116720.0,1e-08]
[1754645123381,6.80435732,116730.0,116720.0,1e-08]
[1754645123592,7.15435732,116730.0,116720.0,1e-08]
[1754645123916,6.80435732,116730.0,116720.0,1e-08]
[1754645124117,7.15435732,116730.0,116720.0,1e-08]
[1754645124364,6.80435732,116730.0,116720.0,1e-08]
[1754645124568,7.15435732,116730.0,116720.0,1e-08]
[1754645124770,6.51941096,116730.0,116720.0,1e-08]
[1754645124923,7.15435732,116730.0,116720.0,1e-08]
[1754645125337,7.06461307,116730.0,116720.0,0.02754001]
[1754645125801,2.04565907,116730.0,116720.0,0.02754001]
[1754645126379,2.04565907,116730.0,116720.0,0.00202001]
[1754645126599,2.04864907,116730.0,116720.0,0.00202001]
[1754645134204,1.41370271,116730.0,116720.0,0.00202001]
[1754645134413,2.04864907,116730.0,116720.0,0.00202001]
[1754645134604,2.04565907,116730.0,116720.0,0.00202001]
[1754645135460,2.04846907,116730.0,116720.0,0.00202001]
[1754645141195,2.04846907,116730.0,116720.0,1e-08]
[1754645141406,2.40431052,116730.0,116720.0,1e-08]
[1754645143830,2.08683734,116730.0,116720.0,1e-08]
[1754645144503,2.40431052,116730.0,116720.0,1e-08]
[1754645146824,2.08683734,116730.0,116720.0,1e-08]
[1754645147042,2.04846907,116730.0,116720.0,1e-08]
[1754645147931,2.36594225,116730.0,116720.0,1e-08]
[1754645150455,7.38489625,116730.0,116720.0,1e-08]
[1754645153994,7.58489625,116730.0,116720.0,1e-08]
[1754645154883,7.6716905,116730.0,116720.0,1e-08]
[1754645155710,0.52879925,116720.0,116710.0,1e-08]
[1754645155914,0.17140898,116680.0,116670.0,0.0004]
[1754645156113,0.93659534,116680.0,116670.0,0.02874548]
[1754645156363,0.61912216,116680.0,116670.0,0.02874548]
[1754645156570,0.61912216,116680.0,116670.0,0.05195548]
[1754645157801,0.68912216,116680.0,116670.0,0.05195548]
[1754645158008,0.68912216,116680.0,116670.0,0.05501548]
[1754645158257,0.68912216,116680.0,116670.0,0.05701548]
[1754645159311,0.68912216,116680.0,116670.0,0.06001548]
[1754645160568,0.69780224,116680.0,116670.0,0.06001548]
[1754645161112,0.84780224,116680.0,116670.0,0.06001548]
[1754645162788,0.53032906,116680.0,116670.0,0.06001548]
[1754645162985,0.84780224,116680.0,116670.0,0.06001548]
[1754645163624,1.16527542,116680.0,116670.0,0.06001548]
[1754645165189,1.50527542,116680.0,116670.0,0.06001548]
[1754645165894,0.87032906,116680.0,116670.0,0.06001548]
[1754645166158,1.50527542,116680.0,116670.0,0.06001548]
[1754645166369,0.87032906,116680.0,116670.0,0.05695548]
[1754645166596,1.50527542,116680.0,116670.0,0.05695548]
[1754645166999,1.53011542,116680.0,116670.0,0.05695548]
[1754645167202,1.53308542,116680.0,116670.0,0.05695548]
[1754645167359,1.53011542,116680.0,116670.0,0.05695548]
[1754645167583,1.50527542,116680.0,116670.0,0.05695548]
[1754645167797,0.87032906,116680.0,116670.0,0.05495548]
[1754645167976,1.18780224,116680.0,116670.0,0.05601548]
[1754645169156,1.18780224,116680.0,116670.0,0.05295548]
[1754645169537,1.18780224,116680.0,116670.0,0.05601548]
[1754645169953,1.18780224,116680.0,116670.0,0.05295548]
[1754645170406,1.21068224,116680.0,116670.0,0.05295548]
[1754645171073,1.53308542,116680.0,116670.0,0.05295548]
[1754645172064,1.53308542,116680.0,116670.0,0.02763548]
[1754645172268,1.53308542,116680.0,116670.0,0.02863548]
[1754645173649,1.53308542,116680.0,116670.0,0.05395548]
[1754645174968,1.21561224,116680.0,116670.0,0.05395548]
[1754645175613,1.53308542,116680.0,116670.0,0.05395548]
[1754645177992,0.74008906,116680.0,116670.0,0.05395548]
[1754645178170,1.18780224,116680.0,116670.0,0.05395548]
[1754645179602,1.21068224,116680.0,116670.0,0.05395548]
[1754645179972,0.89320906,116680.0,116670.0,0.05395548]
[1754645180181,1.21264224,116680.0,116670.0,0.05395548]
[1754645182653,1.21579224,116680.0,116670.0,0.05395548]
[1754645185990,1.08555224,116680.0,116670.0,0.05395548]
[1754645186197,1.21579224,116680.0,116670.0,0.05395548]
[1754645186894,0.87032906,116680.0,116670.0,0.37454866]
[1754645187530,0.87032906,116680.0,116670.0,0.54597233]
[1754645188117,0.87032906,116680.0,116670.0,0.22849915]
[1754645189212,0.87032906,116680.0,116670.0,0.05707548]
[1754645189424,1.18780224,116680.0,116670.0,0.05707548]
[1754645189633,1.18780224,116680.0,116670.0,0.05395548]
[1754645191432,1.21103224,116680.0,116670.0,0.05395548]
[1754645192289,1.21296513,116680.0,116670.0,0.05395548]
[1754645192495,1.21611513,116680.0,116670.0,0.05395548]
[1754645193185,0.89864195,116680.0,116670.0,0.05395548]
[1754645193387,1.21611513,116680.0,116670.0,0.05395548]
[1754645194045,1.21296513,116680.0,116670.0,0.05395548]
[1754645194228,1.20428505,116680.0,116670.0,0.05395548]
[1754645196049,0.73118187,116680.0,116670.0,0.22537915]
[1754645196265,0.22,116680.0,116670.0,0.63283444]
[1754645196465,0.35024,116680.0,116670.0,0.31536126]
[1754645196701,0.35024,116680.0,116670.0,0.63283444]
[1754645197771,0.35024,116680.0,116670.0,0.64162549]
[1754645201900,0.35024,116680.0,116670.0,0.31536126]
[1754645202129,0.35024,116680.0,116670.0,0.63283444]
[1754645204319,0.35024,116680.0,116670.0,0.62971444]
[1754645206735,0.35024,116680.0,116670.0,0.63283444]
[1754645207406,0.35024,116680.0,116670.0,0.62971444]
[1754645207695,0.37347,116680.0,116670.0,0.62971444]
[1754645208523,0.35024,116680.0,116670.0,0.62971444]
[1754645211965,0.35024,116680.0,116670.0,0.63286444]
[1754645219223,0.35024,116680.0,116670.0,0.31539126]
[1754645219434,0.35024,116680.0,116670.0,0.63286444]
[1754645221792,0.35024,116680.0,116670.0,0.62971444]
[1754645222008,0.35024,116680.0,116670.0,0.31224126]
[1754645222219,0.35024,116680.0,116670.0,0.62971444]
[1754645223076,0.37377,116680.0,116670.0,0.62971444]
[1754645223932,0.35024,116680.0,116670.0,0.62971444]
[1754645226077,0.35024,116680.0,116670.0,0.31224126]
[1754645226290,0.37377,116680.0,116670.0,0.62971444]
[1754645226716,0.37887,116680.0,116670.0,0.62971444]
[1754645228680,0.37887,116680.0,116670.0,0.31224126]
[1754645228861,0.37887,116680.0,116670.0,0.62971444]
[1754645230205,0.37573,116680.0,116670.0,0.62971444]
[1754645230430,0.37377,116680.0,116670.0,0.62971444]
[1754645230665,0.35024,116680.0,116670.0,0.62971444]
[1754645232244,0.35024,116680.0,116670.0,0.31224126]
[1754645232457,0.37573,116680.0,116670.0,0.62971444]
[1754645233619,0.37887,116680.0,116670.0,0.62971444]
[1754645234482,0.37887,116680.0,116670.0,0.31224126]
[1754645234706,0.37887,116680.0,116670.0,0.62971444]
[1754645238350,0.37887,116680.0,116670.0,0.31224126]
[1754645238527,0.37887,116680.0,116670.0,0.62971444]
[1754645238732,0.37836563,116680.0,116670.0,0.62971444]
[1754645242443,0.37836563,116680.0,116670.0,0.31224126]
[1754645242850,0.37836563,116680.0,116670.0,0.62971444]
[1754645243063,0.37836563,116680.0,116670.0,0.31224126]
[1754645243271,0.37836563,116680.0,116670.0,0.62971444]
[1754645244859,0.37836563,116680.0,116670.0,0.31224126]
[1754645245057,0.37836563,116680.0,116670.0,0.62971444]
[1754645245260,0.37836563,116680.0,116670.0,0.31224126]
[1754645245455,0.37836563,116680.0,116670.0,0.62971444]
[1754645246220,0.54977461,116680.0,116670.0,0.60650444]
[1754645246640,0.37836563,116680.0,116670.0,0.60650444]
[1754645247049,0.54977461,116680.0,116670.0,0.60650444]
[1754645247907,0.54977461,116680.0,116670.0,0.28903126]
[1754645248123,0.54977461,116680.0,116670.0,0.60650444]
[1754645248561,0.54977461,116680.0,116670.0,0.60439444]
[1754645249091,0.54977461,116680.0,116670.0,0.28692126]
[1754645249336,0.54977461,116680.0,116670.0,0.60439444]
[1754645252605,0.54977461,116680.0,116670.0,0.28692126]
[1754645252807,0.54977461,116680.0,116670.0,0.60439444]
[1754645255143,0.54977461,116680.0,116670.0,0.28692126]
[1754645255350,0.54977461,116680.0,116670.0,0.60439444]
[1754645266950,0.54977461,116680.0,116670.0,0.60655444]
[1754645267180,0.37836563,116680.0,116670.0,0.63146444]
[1754645267599,0.37836563,116680.0,116670.0,0.31399126]
[1754645267838,0.37836563,116680.0,116670.0,0.63146444]
[1754645268025,0.37836563,116680.0,116670.0,0.76190444]
[1754645268253,0.37522563,116680.0,116670.0,0.76190444]
[1754645269168,0.37522563,116680.0,116670.0,0.44443126]
[1754645269388,0.37522563,116680.0,116670.0,0.76190444]
[1754645270766,0.37522563,116680.0,116670.0,0.44443126]
[1754645270994,0.37522563,116680.0,116670.0,0.76190444]
[1754645271665,0.37831563,116680.0,116670.0,0.76190444]
[1754645276895,0.37831563,116680.0,116670.0,0.44443126]
[1754645277096,0.37831563,116680.0,116670.0,0.76190444]
[1754645279312,0.37522563,116680.0,116670.0,0.76190444]
[1754645285194,0.21949563,116680.0,116670.0,1.07937762]
[1754645285420,0.21949563,116680.0,116670.0,1.08248762]
[1754645285647,0.21949563,116680.0,116670.0,0.76501444]
[1754645290636,0.21949563,116680.0,116670.0,1.03441444]
[1754645298674,0.21949563,116680.0,116670.0,1.03130444]
[1754645298839,0.24618563,116680.0,116670.0,1.03130444]
[1754645299225,0.24927563,116680.0,116670.0,1.00639444]
[1754645299681,0.24927563,116680.0,116670.0,1.03138444]
[1754645300076,0.24618563,116680.0,116670.0,1.03138444]
[1754645304203,0.21949563,116680.0,116670.0,1.03138444]
[1754645306949,0.24315563,116680.0,116670.0,1.03138444]
[1754645307788,0.24315563,116680.0,116670.0,0.71391126]
[1754645308218,0.24315563,116680.0,116670.0,1.03138444]
[1754645309193,0.24516563,116680.0,116670.0,1.03138444]
[1754645309421,0.24818563,116680.0,116670.0,1.03138444]
[1754645310514,0.24516563,116680.0,116670.0,1.03138444]
[1754645312210,0.24516563,116680.0,116670.0,0.71391126]
[1754645312683,1.05454097,116680.0,116670.0,0.55632126]
[1754645313195,0.73706779,116680.0,116670.0,0.55632126]
[1754645314335,0.73706779,116680.0,116670.0,0.28692126]
[1754645316640,0.24818563,116680.0,116670.0,0.28692126]
[1754645317560,0.24818563,116680.0,116670.0,0.73519444]
[1754645318218,0.24818563,116680.0,116670.0,0.41772126]
[1754645319513,0.24818563,116680.0,116670.0,0.28692126]
[1754645320076,0.56565881,116680.0,116670.0,0.28692126]
[1754645320503,0.24818563,116680.0,116670.0,0.28692126]
[1754645326237,0.24818563,116680.0,116670.0,0.28887126]
[1754645326439,0.24818563,116680.0,116670.0,0.60634444]
[1754645327980,0.24818563,116680.0,116670.0,0.62903444]
[1754645328675,0.24818563,116680.0,116670.0,0.31156126]
[1754645328903,0.24818563,116680.0,116670.0,0.62903444]
[1754645329113,0.24818563,116680.0,116670.0,0.60634444]
[1754645329536,0.24818563,116680.0,116670.0,0.28887126]
[1754645332598,0.56565881,116680.0,116670.0,0.28887126]
[1754645333009,0.56565881,116680.0,116670.0,0.28692126]
[1754645334306,0.24818563,116680.0,116670.0,0.28692126]
[1754645334521,0.56565881,116680.0,116670.0,0.28692126]
[1754645337838,0.24818563,116680.0,116670.0,0.28692126]
[1754645338065,0.56565881,116680.0,116670.0,0.28692126]
[1754645340770,0.55884515,116680.0,116670.0,0.28692126]
[1754645346395,0.24137197,116680.0,116670.0,0.28902126]
[1754645346599,0.55884515,116680.0,116670.0,0.28902126]
[1754645346820,0.24137197,116680.0,116670.0,0.31366126]
[1754645351411,0.23835197,116680.0,116670.0,0.63113444]
[1754645351646,0.21268197,116680.0,116670.0,0.63113444]
[1754645351881,0.21268197,116680.0,116670.0,0.63411444]
[1754645355749,0.21268197,116680.0,116670.0,0.90351444]
[1754645360272,0.21268197,116680.0,116670.0,0.58604126]
[1754645360476,0.21268197,116680.0,116670.0,0.90351444]
[1754645361319,0.21268197,116680.0,116670.0,1.03435444]
[1754645374770,0.21268197,116680.0,116670.0,1.09987664]
[1754645374969,0.15,116680.0,116670.0,1.43987664]
[1754645376636,0.15,116680.0,116670.0,1.70727664]
[1754645376847,0.15,116680.0,116670.0,1.71227664]
[1754645377073,0.15,116680.0,116670.0,1.71527664]
[1754645378748,0.15,116680.0,116670.0,1.74027664]
[1754645379170,0.15,116680.0,116670.0,1.71527664]
[1754645379347,0.15,116680.0,116670.0,1.89426637]
[1754645382105,1.02379,116700.0,116690.0,0.17139429]
[1754645382337,1.0258,116700.0,116690.0,1.004182]
[1754645382466,1.0258,116700.0,116690.0,1.31951276]
[1754645382903,1.0258,116700.0,116690.0,1.34526676]
[1754645383315,1.0258,116700.0,116690.0,1.34626676]
[1754645383525,1.0258,116700.0,116690.0,1.34826676]
[1754645385609,1.0258,116700.0,116690.0,1.03079358]
[1754645386284,1.0258,116700.0,116690.0,0.7133204]
[1754645386484,1.02893,116700.0,116690.0,1.00657358]
[1754645389516,1.02893,116700.0,116690.0,0.6891004]
[1754645389757,1.02893,116700.0,116690.0,1.00657358]
[1754645400525,1.0,116700.0,116690.0,1.34834676]
[1754645400941,1.0,116700.0,116690.0,1.39488374]
[1754645402502,1.0,116700.0,116690.0,1.39182374]
[1754645403691,1.02279,116700.0,116690.0,1.39182374]
[1754645404122,1.02279,116700.0,116690.0,0.75687738]
[1754645404343,1.02279,116700.0,116690.0,1.39182374]
[1754645405733,1.02279,116700.0,116690.0,1.07435056]
[1754645409374,1.02483,116700.0,116690.0,1.07435056]
[1754645409578,1.02789,116700.0,116690.0,1.07435056]
[1754645410711,1.02789,116700.0,116690.0,1.39182374]
[1754645413361,1.02483,116700.0,116690.0,1.39182374]
[1754645415848,1.02789,116700.0,116690.0,1.39182374]
[1754645416905,1.02789,116700.0,116690.0,0.62615738]
[1754645417118,1.02789,116700.0,116690.0,1.04989056]
[1754645417337,1.02789,116700.0,116690.0,1.03047154]
[1754645417555,1.02789,116700.0,116690.0,1.00444358]
[1754645422690,1.02789,116700.0,116690.0,0.6869704]
[1754645422872,1.02789,116700.0,116690.0,1.00444358]
[1754645433224,1.02789,116700.0,116690.0,0.6869704]
[1754645433429,1.02789,116700.0,116690.0,1.00444358]
[1754645437965,1.02789,116700.0,116690.0,1.00643358]
[1754645438176,1.02789,116700.0,116690.0,1.03066358]
[1754645438598,1.0,116700.0,116690.0,1.35124676]
[1754645440087,1.0,116700.0,116690.0,1.36769578]
[1754645440304,1.0,116700.0,116690.0,1.36969578]
[1754645440501,1.0,116700.0,116690.0,1.39515037]
[1754645440710,1.0,116700.0,116690.0,1.39315037]
[1754645441122,1.0,116700.0,116690.0,1.07767719]
[1754645443720,1.0,116700.0,116690.0,1.39515037]
[1754645444105,1.0,116700.0,116690.0,0.75709401]
[1754645444335,1.0,116700.0,116690.0,1.07456719]